bitfinex-derivatives/quotes_SOLF0:USTF0_20241026
["timestamp","ask_amount","ask_price","bid_price","bid_amount"]
[1729903686669,3.0245,165.54,165.51,3.9225]
[1729903686873,1.2391,165.61,165.52,7.32]
[1729903687078,20.9121317,165.57,165.45,7.32]
[1729903687278,3.0255,165.49,165.45,7.32]
[1729903687976,3.03221668,165.54,165.45,7.32]
[1729903688176,2.5735,165.56,165.45,7.32]
[1729903688579,3.025,165.52,165.45,11.6546]
[1729903688973,2.5735,165.56,165.45,11.6546]
[1729903689580,2.5735,165.56,165.47,3.0257]
[1729903689773,20.9121317,165.6,165.47,20.9121317]
[1729903690175,3.0241,165.56,165.51,3.025]
[1729903690374,3.0241,165.56,165.51,10.345]
[1729903690569,2.4631,165.61,165.51,10.345]
[1729903690774,3.0239,165.58,165.52,23.9369317]
[1729903690973,1.258,165.64,165.51,7.32]
[1729903691384,20.9121317,165.62,165.51,7.32]
[1729903691681,1.258,165.64,165.51,7.32]
[1729903691682,20.9121317,165.6,165.51,7.32]
[1729903691880,3.0246,165.54,165.51,7.32]
[1729903692181,20.9121317,165.6,165.51,7.32]
[1729903692480,3.0245,165.54,165.51,7.32]
[1729903692878,20.9121317,165.6,165.51,7.32]
[1729903693073,3.0243,165.55,165.51,7.32]
[1729903693677,1.258,165.64,165.51,7.32]
[1729903693875,0.95520072,165.63,165.52,22.1657317]
[1729903694282,3.0237,165.58,165.52,25.1905317]
[1729903694586,3.0237,165.58,165.52,4.2784]
[1729903696783,3.0237,165.58,165.52,1.2536]
[1729903696986,1.258,165.64,165.52,1.2536]
[1729903697175,3.0235,165.6,165.52,1.2536]
[1729903698082,3.0235,165.6,165.54,20.9121317]
[1729903698387,3.0235,165.6,165.55,1.2986]
[1729903698782,5.49085769,165.65,165.55,1.2986]
[1729903698982,0.95501935,165.64,165.55,1.2986]
[1729903699383,3.0232,165.61,165.55,1.2986]
[1729903699579,3.0232,165.61,165.55,4.3229]
[1729903699784,3.0232,165.61,165.55,1.2986]
[1729903701391,3.0232,165.61,165.55,4.3227]
[1729903703693,3.02107447,165.67,165.55,1.2986]
[1729903703987,1.2942,165.69,165.59,20.9121317]
[1729903704187,1.2722,165.77,165.62,20.9121317]
[1729903704376,3.0216,165.7,165.64,3.0226]
[1729903704576,3.0216,165.7,165.63,1.2622]
[1729903704784,20.9121317,165.75,165.64,7.32]
[1729903704984,23.96178943,165.75,165.64,7.32]
[1729903705178,3.04965773,165.75,165.64,7.32]
[1729903705382,3.0216,165.7,165.64,7.32]
[1729903706584,3.01641072,165.74,165.64,7.32]
[1729903706783,20.9121317,165.75,165.64,7.32]
[1729903707184,3.0218,165.69,165.64,7.32]
[1729903707379,23.99473419,165.75,165.64,7.32]
[1729903708085,3.0219,165.68,165.64,7.32]
[1729903708278,23.99473419,165.75,165.64,7.32]
[1729903708487,20.9121317,165.72,165.62,7.3]
[1729903708685,3.0234,165.61,165.58,7.3]
[1729903709386,3.08206785,165.68,165.58,7.3]
[1729903709592,3.023,165.63,165.58,7.3]
[1729903710694,3.023,165.62,165.58,7.3]
[1729903711192,3.08206785,165.68,165.58,7.3]
[1729903711387,7.28,165.78,165.59,20.9121317]
[1729903711587,20.9121317,165.74,165.61,3.0231]
[1729903711791,23.88517972,165.74,165.61,3.0231]
[1729903712191,3.0222,165.67,165.61,3.0231]
[1729903714393,23.88517972,165.74,165.59,24.7790317]
[1729903714695,2.97304802,165.74,165.64,20.9121317]
[1729903714889,23.5739317,165.77,165.65,7.28]
[1729903715090,3.0208,165.75,165.68,3.0218]
[1729903715395,2.6618,165.77,165.68,3.0218]
[1729903716293,20.9121317,165.71,165.42,16.87407034]
[1729903716593,20.9121317,165.68,165.53,20.9121317]
[1729903716891,2.5396,165.67,165.54,7.28]
[1729903717394,5.59059652,165.67,165.54,7.28]
[1729903717794,3.0234,165.6,165.54,7.28]
[1729903718000,5.59059652,165.67,165.53,28.1921317]
[1729903718490,5.59059652,165.67,165.55,3.0242]
[1729903720093,5.59059652,165.67,165.53,28.1921317]
[1729903720291,3.023,165.63,165.56,3.0241]
[1729903721088,5.59059652,165.67,165.55,3.0243]
[1729903721296,5.59059652,165.67,165.53,20.9121317]
[1729903721695,5.59059652,165.67,165.54,3.0245]
[1729903721894,5.59059652,165.67,165.53,20.9121317]
[1729903724006,5.59059652,165.67,165.52,9.8352]
[1729903724007,2.5396,165.67,165.58,20.9121317]
[1729903724396,5.5617,165.67,165.61,3.0232]
[1729903724592,2.5396,165.67,165.61,3.0232]
[1729903724905,1.2611,165.7,165.61,3.0232]
[1729903725098,4.24051168,165.7,165.61,3.0232]
[1729903725298,3.0221,165.67,165.61,3.0232]
[1729903725494,1.2611,165.7,165.59,1.2788]
[1729903725796,4.22237219,165.7,165.63,3.0228]
[1729903725999,1.2611,165.7,165.63,3.0228]
[1729903726304,1.2611,165.7,165.64,3.0226]
[1729903728401,1.2611,165.7,165.59,1.2788]
[1729903728603,1.2611,165.7,165.58,28.1921317]
[1729903728604,3.0226,165.65,165.58,7.28]
[1729903728804,1.3046,165.69,165.58,28.1921317]
[1729903729402,1.3046,165.69,165.63,3.0227]
[1729903729700,20.9121317,165.79,165.64,20.9121317]
[1729903729902,2.6269,165.77,165.64,20.9121317]
[1729903730102,3.0211,165.73,165.65,3.0223]
[1729903730303,1.2567,165.76,165.65,3.0223]
[1729903731701,1.2567,165.76,165.64,20.9121317]
[1729903731893,3.0212,165.72,165.66,3.0221]
[1729903732101,2.95697784,165.79,165.66,20.9121317]
[1729903732304,3.0207,165.75,165.69,3.0216]
[1729903733206,3.06646634,165.79,165.71,3.0213]
[1729903733207,3.0205,165.76,165.71,3.0213]
[1729903733396,3.0205,165.76,165.67,3.7897]
[1729903734507,3.0204,165.77,165.67,3.7897]
[1729903735302,3.0928077,165.78,165.67,3.7897]
[1729903735502,3.8181,165.81,165.67,3.7897]
[1729903735803,3.0215,165.71,165.65,3.0224]
[1729903738207,3.0216,165.7,165.64,31.2147317]
[1729903738709,3.022,165.68,165.64,28.1921317]
[1729903739007,3.022,165.68,165.62,10.303]
[1729903739405,7.28,165.76,165.62,7.28]
[1729903739406,3.0223,165.67,165.62,7.28]
[1729903739713,3.00673886,165.72,165.62,7.28]
[1729903739912,2.4845,165.73,165.62,7.28]
[1729903740110,2.97113034,165.72,165.62,7.28]
[1729903740306,3.022,165.68,165.62,10.303]
[1729903740906,20.9121317,165.79,165.67,20.9121317]
[1729903741107,20.9121317,165.7,165.57,1.2465]
[1729903741302,3.0227,165.64,165.57,3.0239]
[1729903741703,2.4818,165.68,165.57,3.0239]
[1729903743005,2.4818,165.68,165.55,20.9121317]
[1729903743200,3.0229,165.63,165.56,3.0241]
[1729903743406,20.9121317,165.67,165.37,6.0549]
[1729903743608,3.024,165.57,165.5,3.025]
[1729903743912,20.9121317,165.64,165.49,23.4213317]
[1729903743913,3.02917603,165.6,165.49,23.4213317]
[1729903744116,20.9121317,165.62,165.49,23.4213317]
[1729903744410,7.26,165.64,165.54,20.9121317]
[1729903744806,30.6539317,165.68,165.54,20.9121317]
[1729903745112,3.0227,165.64,165.54,22.1528317]
[1729903745317,2.4818,165.68,165.57,20.9121317]
[1729903745525,3.0225,165.66,165.58,3.0237]
[1729903745701,2.4818,165.68,165.54,1.2407]
[1729903745702,2.4818,165.68,165.6,20.9121317]
[1729903746011,7.26,165.72,165.63,20.9121317]
[1729903746217,3.04913267,165.74,165.6,22.2270317]
[1729903746402,20.9121317,165.73,165.6,22.2270317]
[1729903746606,3.0217,165.7,165.6,25.2503317]
[1729903746809,20.9121317,165.73,165.6,22.2270317]
[1729903746810,3.02518217,165.71,165.6,22.2270317]
[1729903747005,20.9121317,165.73,165.6,22.2270317]
[1729903747309,3.0217,165.7,165.63,3.0227]
[1729903747905,24.8359317,165.76,165.65,3.0224]
[1729903748216,32.0959317,165.76,165.65,3.0224]
[1729903749012,32.0959317,165.76,165.66,3.0222]
[1729903749216,32.0959317,165.76,165.52,5.94064665]
[1729903749217,20.9121317,165.67,165.52,5.94064665]
[1729903749418,3.0236,165.6,165.52,1.2223]
[1729903749613,3.0236,165.6,165.54,3.0245]
[1729903749810,3.7755,165.66,165.54,20.9121317]
[1729903750010,3.7755,165.66,165.54,28.1721317]
[1729903751517,3.7755,165.66,165.55,1.51217097]
[1729903751916,3.7755,165.66,165.56,1.2258]
[1729903752116,1.287,165.66,165.57,20.9121317]
[1729903752417,3.0225,165.65,165.58,3.0237]
[1729903752622,20.9121317,165.72,165.59,20.9121317]
[1729903752919,20.9121317,165.72,165.6,7.26]
[1729903753217,23.90091159,165.72,165.6,7.26]
[1729903753415,23.90091159,165.72,165.6,8.4847]
[1729903753721,2.98877989,165.72,165.62,20.9121317]
[1729903753919,22.2042317,165.75,165.62,20.9121317]
[1729903754218,21.23541765,165.83,165.67,20.9121317]
[1729903754219,3.07541765,165.83,165.67,20.9121317]
[1729903754410,4.75645169,165.81,165.67,28.1721317]
[1729903754718,3.8025,165.81,165.67,7.26]
[1729903755014,20.9121317,165.68,165.56,2.4732]
[1729903755321,20.9121317,165.66,165.57,1.51184678]
[1729903755913,20.9121317,165.66,165.54,1.51184678]
[1729903756217,20.9121317,165.66,165.55,1.51184678]
[1729903756516,20.9121317,165.66,165.56,1.51214452]
[1729903756718,3.0229,165.63,165.56,3.0241]
[1729903757121,3.0229,165.63,165.56,4.53624452]
[1729903757418,3.0229,165.63,165.56,3.0241]
[1729903757625,3.0232,165.61,165.54,3.0244]
[1729903757820,3.0232,165.61,165.55,1.51219148]
[1729903758015,3.0232,165.61,165.54,4.53659148]
[1729903758625,3.0232,165.61,165.54,3.0244]
[1729903759324,3.0232,165.61,165.54,4.53659148]
[1729903759522,3.0232,165.61,165.54,3.0244]
[1729903759720,3.0232,165.61,165.54,4.53659148]
[1729903759921,3.0232,165.61,165.54,3.0244]
[1729903760121,3.0232,165.61,165.54,4.53659148]
[1729903760418,3.0232,165.61,165.55,1.51219148]
[1729903760622,3.0232,165.61,165.54,4.53659148]
[1729903760829,33.98405865,165.65,165.54,1.51219148]
[1729903761129,3.0232,165.62,165.55,3.0243]
[1729903761329,3.0232,165.62,165.55,1.51219148]
[1729903761627,3.0227,165.64,165.57,3.0239]
[1729903761921,37.07682462,165.68,165.56,33.98405865]
[1729903762120,37.07682462,165.68,165.57,1.51219148]
[1729903762321,37.07682462,165.68,165.56,4.72915348]
[1729903762520,37.07682462,165.68,165.57,1.51219148]
[1729903763327,3.0228,165.64,165.57,3.0238]
[1729903763926,3.0228,165.64,165.58,3.0236]
[1729903764520,37.07682462,165.68,165.57,1.51205635]
[1729903764721,37.07682462,165.68,165.56,4.458962]
[1729903764722,3.0225,165.65,165.56,4.458962]
[1729903764927,3.0225,165.65,165.57,11.98896951]
[1729903765127,3.0225,165.65,165.58,1.51200751]
[1729903765324,3.0221,165.67,165.59,35.49595212]
[1729903765523,3.0221,165.67,165.57,7.26]
[1729903765524,33.98405865,165.7,165.57,7.26]
[1729903765719,33.98405865,165.67,165.58,4.73456985]
[1729903765926,33.98405865,165.67,165.57,3.22276669]
[1729903766131,33.98405865,165.67,165.58,1.51211761]
[1729903766425,33.98405865,165.67,165.56,1.242]
[1729903766628,33.98405865,165.67,165.57,1.51215684]
[1729903766930,33.98405865,165.67,165.56,4.46692892]
[1729903767327,33.98405865,165.67,165.57,1.51218397]
[1729903767528,3.0232,165.62,165.56,7.49102892]
[1729903767828,3.0232,165.62,165.57,1.51218526]
[1729903768039,3.0229,165.63,165.58,4.53576363]
[1729903768228,33.98405865,165.67,165.59,1.51206363]
[1729903768429,33.98405865,165.67,165.58,3.22896234]
[1729903768735,33.98405865,165.67,165.59,1.51199574]
[1729903768939,33.98405865,165.67,165.57,3.22912378]
[1729903769236,3.0228,165.64,165.59,3.0235]
[1729903769528,33.98405865,165.67,165.59,3.0235]
[1729903769931,3.0226,165.65,165.58,3.22854427]
[1729903770124,3.0226,165.65,165.54,7.26]
[1729903770125,33.98405865,165.67,165.54,7.26]
[1729903770323,33.98405865,165.67,165.55,4.74149703]
[1729903770529,3.0238,165.58,165.56,4.74149703]
[1729903770733,3.0238,165.58,165.57,1.51209937]
[1729903771235,3.0238,165.58,165.55,3.22889986]
[1729903771433,3.0238,165.58,165.56,1.51221578]
[1729903771637,3.0238,165.58,165.54,3.22953584]
[1729903771832,3.0238,165.58,165.55,4.74175188]
[1729903772142,3.0238,165.58,165.56,1.51221604]
[1729903772334,3.0232,165.61,165.53,3.22911567]
[1729903772533,3.0232,165.61,165.54,4.74133361]
[1729903772732,3.0232,165.61,165.51,41.22405865]
[1729903772733,3.0232,165.61,165.55,4.74133361]
[1729903772930,3.0232,165.61,165.56,1.51221794]
[1729903773130,3.0232,165.61,165.51,41.22405865]
[1729903773427,3.0232,165.61,165.53,4.74010476]
[1729903773627,3.0232,165.61,165.54,4.74010476]
[1729903773829,3.0232,165.61,165.55,4.74010476]
[1729903774025,3.0232,165.61,165.56,1.51221458]
[1729903774232,3.0232,165.61,165.55,3.0242]
[1729903774433,3.0232,165.61,165.56,1.51220938]
[1729903774637,3.0232,165.61,165.55,3.0242]
[1729903774834,3.0232,165.61,165.56,1.51220252]
[1729903775138,3.0236,165.59,165.53,3.0246]
[1729903775339,3.0236,165.59,165.54,4.73886318]
[1729903775544,3.03360134,165.61,165.55,4.73886318]
[1729903775737,33.98405865,165.62,165.52,7.24]
[1729903775932,41.22405865,165.62,165.53,4.739018]
[1729903776134,41.22405865,165.62,165.54,4.739018]
[1729903776334,41.22405865,165.62,165.52,7.24]
[1729903776335,41.22405865,165.62,165.53,3.22500499]
[1729903776628,3.0236,165.59,165.54,3.0244]
[1729903777237,3.0234,165.6,165.55,3.0243]
[1729903777641,2.4943,165.63,165.54,3.22454013]
[1729903777943,3.0232,165.62,165.56,3.0239]
[1729903778529,2.4943,165.63,165.56,3.0239]
[1729903778736,3.0232,165.61,165.56,3.0239]
[1729903778944,3.06626949,165.61,165.54,3.0243]
[1729903779240,3.0235,165.6,165.55,1.51232655]
[1729903779543,3.0235,165.6,165.51,3.22377819]
[1729903779843,3.0235,165.6,165.52,4.73612573]
[1729903780040,3.0235,165.6,165.53,4.73612573]
[1729903780242,3.0235,165.6,165.55,3.0241]
[1729903780446,3.0237,165.59,165.5,7.24]
[1729903780739,3.0237,165.59,165.51,4.73735859]
[1729903780939,3.0237,165.59,165.52,4.73735859]
[1729903781142,3.0237,165.59,165.54,3.0244]
[1729903782847,2.99125373,165.61,165.52,3.22518722]
[1729903783044,3.0238,165.58,165.53,6.24978722]
[1729903783237,3.0238,165.58,165.53,3.0246]
[1729903783548,20.91315729,165.62,165.54,1.51238738]
[1729903783736,3.0233,165.61,165.56,3.024]
[1729903784246,2.4943,165.63,165.53,3.22393314]
[1729903784439,1.258,165.63,165.54,4.73625989]
[1729903784640,2.536,165.68,165.55,4.73625989]
[1729903784846,2.536,165.68,165.56,11.97625989]
[1729903785041,3.0225,165.65,165.6,3.0233]
[1729903785442,2.536,165.68,165.6,3.0233]
[1729903786035,3.0225,165.65,165.6,3.0233]
[1729903786845,20.91315729,165.71,165.61,4.73605505]
[1729903787144,20.91315729,165.69,165.62,1.51213808]
[1729903787353,20.91315729,165.69,165.58,3.22391697]
[1729903787551,20.91315729,165.69,165.59,7.15506356]
[1729903787849,20.91315729,165.69,165.56,8.5775]
[1729903787850,20.91315729,165.69,165.6,3.93114659]
[1729903788148,23.91499863,165.69,165.61,3.93114659]
[1729903788339,23.91499863,165.69,165.62,1.51197946]
[1729903788538,23.91499863,165.69,165.56,8.5775]
[1729903788736,20.91315729,165.62,165.57,7.15176263]
[1729903788941,20.91315729,165.62,165.58,3.93176187]
[1729903789141,20.91315729,165.62,165.5,3.22313069]
[1729903789451,20.91315729,165.62,165.52,3.0246]
[1729903789452,3.0235,165.59,165.52,3.0246]
[1729903789642,3.0235,165.59,165.53,7.15533786]
[1729903789843,3.0235,165.59,165.54,3.93220717]
[1729903790047,3.0235,165.59,165.55,3.93220717]
[1729903790248,3.0235,165.59,165.52,3.0248]
[1729903790445,3.0235,165.59,165.53,4.73664555]
[1729903790646,3.0235,165.59,165.54,1.51245594]
[1729903790842,3.0235,165.59,165.55,1.51245594]
[1729903791046,3.0235,165.59,165.52,3.0248]
[1729903791349,3.0235,165.59,165.53,4.73757072]
[1729903791546,3.0235,165.59,165.54,1.51244415]
[1729903791751,3.0237,165.58,165.55,1.51244415]
[1729903791952,3.0237,165.58,165.52,3.0248]
[1729903792155,3.0237,165.58,165.53,4.73794914]
[1729903792349,3.0237,165.58,165.52,3.0248]
[1729903792649,3.0237,165.58,165.53,4.73784739]
[1729903792852,3.0237,165.58,165.54,1.51247038]
[1729903793055,3.0238,165.58,165.55,1.51247038]
[1729903793255,2.96191956,165.6,165.53,3.22531905]
[1729903793457,2.96191956,165.6,165.54,1.51247714]
[1729903793660,2.96191956,165.6,165.55,1.51247714]
[1729903793849,2.96191956,165.6,165.52,3.22531905]
[1729903794154,2.96191956,165.6,165.53,1.51249814]
[1729903794350,3.024,165.57,165.54,1.51249814]
[1729903794550,3.024,165.57,165.55,1.51249814]
[1729903794750,3.024,165.57,165.52,3.21333078]
[1729903794957,3.024,165.57,165.53,1.512505]
[1729903795156,3.024,165.57,165.54,1.512505]
[1729903795357,3.024,165.57,165.52,3.0248]
[1729903795659,5.4878,165.61,165.53,1.512505]
[1729903795848,5.4878,165.61,165.55,3.0241]
[1729903795849,1.2387,165.61,165.55,3.0241]
[1729903796050,1.2387,165.61,165.5,3.21132916]
[1729903796250,1.2387,165.61,165.51,4.72368272]
[1729903796451,1.2387,165.61,165.52,4.72368272]
[1729903796653,1.2387,165.61,165.53,4.72368272]
[1729903796858,1.2387,165.61,165.54,1.51235356]
[1729903797055,1.2387,165.61,165.55,1.51235356]
[1729903797258,3.0236,165.59,165.54,3.0244]
[1729903797459,3.0236,165.59,165.55,1.51240302]
[1729903797653,3.0236,165.59,165.54,3.0244]
[1729903797953,3.0236,165.59,165.55,1.51240324]
[1729903798159,3.0236,165.59,165.54,3.0244]
[1729903798360,3.0236,165.59,165.55,1.51240131]
[1729903798656,3.0236,165.59,165.54,3.0244]
[1729903799056,3.024,165.57,165.55,1.51240107]
[1729903799358,3.024,165.57,165.53,10.45163544]
[1729903799556,3.024,165.57,165.53,7.24]
[1729903799861,3.024,165.57,165.54,1.51252381]
[1729903800059,3.024,165.57,165.53,7.24]
[1729903800260,3.024,165.57,165.54,1.5125204]
[1729903800449,3.024,165.57,165.53,7.24]
[1729903800654,3.024,165.57,165.54,1.51251354]
[1729903800849,2.96203642,165.6,165.52,3.21259657]
[1729903801156,3.0242,165.56,165.53,1.51251504]
[1729903801358,20.91315729,165.58,165.54,1.51250849]
[1729903801662,20.91315729,165.58,165.55,1.51244936]
[1729903801961,2.9759498,165.6,165.5,7.22]
[1729903802163,2.9759498,165.6,165.51,4.72453093]
[1729903802361,22.15185729,165.61,165.52,4.72453093]
[1729903802562,22.15185729,165.61,165.53,4.72453093]
[1729903802761,22.15185729,165.61,165.54,4.72472639]
[1729903803062,22.15185729,165.61,165.55,1.5124695]
[1729903803252,22.15185729,165.61,165.56,1.5124695]
[1729903803458,22.15185729,165.61,165.53,3.21225689]
[1729903803655,22.15185729,165.61,165.54,4.72465763]
[1729903803859,22.15185729,165.61,165.55,1.51240074]
[1729903804160,22.15185729,165.61,165.56,1.51240074]
[1729903804361,3.0237,165.59,165.54,3.0244]
[1729903804660,20.91315729,165.61,165.55,1.51240224]
[1729903804862,20.91315729,165.61,165.56,1.51240224]
[1729903805059,20.91315729,165.61,165.57,1.51240224]
[1729903805259,3.0234,165.6,165.54,3.0245]
[1729903805460,3.0234,165.6,165.55,1.51239496]
[1729903805653,3.0234,165.6,165.56,1.51239496]
[1729903805863,3.0234,165.6,165.57,1.51239496]
[1729903806065,3.0234,165.6,165.54,3.0245]
[1729903806258,3.0237,165.59,165.55,4.72509635]
[1729903806458,3.0237,165.59,165.56,1.51234676]
[1729903806658,3.0237,165.59,165.57,1.51234676]
[1729903806858,3.0237,165.59,165.54,3.0245]
[1729903807061,3.0237,165.59,165.55,1.51240202]
[1729903807257,3.0239,165.57,165.56,1.51240202]
[1729903807465,3.0239,165.57,165.51,3.21699797]
[1729903807668,3.0239,165.57,165.52,4.72951787]
[1729903807966,3.0239,165.57,165.53,4.72951787]
[1729903808268,3.0239,165.57,165.54,1.5125199]
[1729903808475,3.0234,165.6,165.55,1.5125199]
[1729903808675,20.91315729,165.61,165.56,1.5125199]
[1729903808860,20.91315729,165.61,165.5,28.13315729]
[1729903809067,20.91315729,165.61,165.51,4.72612992]
[1729903809366,20.91315729,165.61,165.53,3.0246]
[1729903809569,20.91315729,165.61,165.54,1.51242859]
[1729903809763,3.03275783,165.6,165.55,1.51242859]
[1729903810063,3.03275783,165.6,165.51,3.21043137]
[1729903810064,20.91315729,165.56,165.51,3.21043137]
[1729903810263,20.91315729,165.52,165.41,3.7865]
[1729903810467,20.91315729,165.52,165.42,1.51303275]
[1729903810468,20.91315729,165.46,165.42,1.51303275]
[1729903810672,20.91315729,165.46,165.43,1.51303275]
[1729903810871,20.91315729,165.46,165.37,7.22]
[1729903810872,2.99827061,165.45,165.44,1.51303275]
[1729903811069,20.91315729,165.46,165.38,1.51398829]
[1729903811272,20.91315729,165.42,165.32,7.22]
[1729903811468,20.91315729,165.42,165.33,1.51411339]
[1729903811668,3.0274,165.38,165.34,1.51411339]
[1729903811863,3.0274,165.38,165.35,1.51411339]
[1729903812161,3.0274,165.38,165.32,10.2484]
[1729903812363,3.08243689,165.41,165.36,3.0276]
[1729903812564,20.91315729,165.46,165.33,20.91315729]
[1729903812766,20.91315729,165.44,165.32,7.22]
[1729903813374,3.0271,165.4,165.33,3.0282]
[1729903813682,20.91315729,165.44,165.32,7.22]
[1729903813976,3.0265,165.43,165.36,3.0277]
[1729903814181,3.0265,165.43,165.32,7.22]
[1729903814182,20.91315729,165.46,165.33,20.91315729]
[1729903814479,3.0257,165.48,165.4,3.0269]
[1729903814683,20.91315729,165.49,165.4,3.0269]
[1729903814879,20.91315729,165.49,165.38,7.22]
[1729903815181,20.91315729,165.47,165.38,7.22]
[1729903817281,3.0269,165.41,165.38,7.22]
[1729903817582,20.91315729,165.47,165.35,7.22]
[1729903817976,3.0269,165.41,165.35,7.22]
[1729903818284,20.91315729,165.47,165.35,7.22]
[1729903818477,3.0276,165.37,165.33,7.22]
[1729903818983,3.0744482,165.4,165.28,20.91315729]
[1729903819278,20.91315729,165.39,165.29,7.22]
[1729903819677,3.0274,165.39,165.31,3.0287]
[1729903819872,2.97301623,165.41,165.31,20.91315729]
[1729903820078,3.8339,165.43,165.31,20.91315729]
[1729903820480,3.8339,165.43,165.33,3.0282]
[1729903821178,3.0278,165.36,165.31,7.22]
[1729903822079,3.0277,165.37,165.31,10.2486]
[1729903822480,20.91315729,165.42,165.31,7.22]
[1729903823379,3.028,165.35,165.31,7.22]
[1729903823984,3.8339,165.43,165.31,7.22]
[1729903824184,20.91315729,165.41,165.31,7.22]
[1729903824385,20.91315729,165.38,165.27,7.22]
[1729903825286,20.91315729,165.38,165.26,2.5562]
[1729903825287,3.0282,165.34,165.28,3.029]
[1729903825488,20.91315729,165.38,165.28,3.029]
[1729903825685,20.91315729,165.38,165.26,2.5562]
[1729903825882,3.0289,165.3,165.25,8.5256]
[1729903826085,20.91315729,165.33,165.19,2.5738]
[1729903826289,3.0296,165.26,165.2,3.0306]
[1729903826479,20.91315729,165.3,165.19,8.5337]
[1729903826982,20.91315729,165.3,165.19,11.5646]
[1729903827289,20.91315729,165.3,165.19,8.5337]
[1729903827484,3.0298,165.25,165.2,3.0307]
[1729903828080,20.91315729,165.3,165.19,8.5337]
[1729903828283,20.91315729,165.3,165.21,3.0305]
[1729903828284,3.0296,165.27,165.21,3.0305]
[1729903828477,20.91315729,165.3,165.19,8.5337]
[1729903828684,1.2206,165.32,165.19,29.44685729]
[1729903828890,3.0294,165.27,165.21,3.0303]
[1729903830289,1.2206,165.32,165.19,29.44685729]
[1729903830290,3.0292,165.29,165.2,3.0307]
[1729903830486,1.2206,165.32,165.19,29.44685729]
[1729903831091,20.91315729,165.3,165.19,8.5337]
[1729903831485,3.0299,165.25,165.19,11.5646]
[1729903831687,20.91315729,165.3,165.19,7.22]
[1729903832083,3.03,165.24,165.19,7.22]
[1729903833391,3.0303,165.22,165.17,8.5208]
[1729903834189,3.0296,165.27,165.18,3.031]
[1729903834491,20.91315729,165.3,165.17,8.5208]
[1729903834693,3.0294,165.28,165.21,3.0304]
[1729903834884,20.91315729,165.3,165.21,3.0304]
[1729903835785,1.2206,165.32,165.19,20.91315729]
[1729903836094,1.2206,165.32,165.2,1.244]
[1729903837284,3.029,165.29,165.2,1.244]
[1729903837894,3.029,165.29,165.23,3.03]
[1729903838498,3.0293,165.28,165.23,3.03]
[1729903839387,1.2206,165.32,165.21,1.2366]
[1729903839595,3.0294,165.27,165.22,3.0303]
[1729903839891,20.91315729,165.3,165.17,8.5208]
[1729903840602,3.03,165.24,165.19,3.0308]
[1729903842501,20.91315729,165.3,165.19,3.0308]
[1729903843190,3.0298,165.25,165.19,3.0308]
[1729903843792,3.0298,165.25,165.17,8.5208]
[1729903843997,1.2206,165.32,165.19,20.91315729]
[1729903844698,1.2206,165.32,165.2,2.5342]
[1729903844894,1.2206,165.32,165.22,20.91315729]
[1729903845098,3.029,165.3,165.24,3.0298]
[1729903845400,1.2206,165.32,165.24,3.0298]
[1729903846297,3.0291,165.29,165.24,3.0298]
[1729903846891,1.2206,165.32,165.23,7.2]
[1729903847691,3.029,165.3,165.25,3.0298]
[1729903848208,1.2206,165.32,165.25,3.0298]
[1729903848803,3.0289,165.3,165.25,3.0298]
[1729903849309,3.029,165.29,165.25,3.0298]
[1729903849806,3.029,165.29,165.24,3.0299]
[1729903852102,3.0283,165.33,165.24,20.91315729]
[1729903852309,3.0283,165.33,165.25,1.2917]
[1729903852508,2.4661,165.35,165.25,1.2917]
[1729903854002,3.0291,165.29,165.25,1.2917]
[1729903854198,20.91315729,165.33,165.22,7.2]
[1729903855610,3.0294,165.28,165.22,10.2301]
[1729903855806,20.91315729,165.33,165.22,10.2301]
[1729903856006,3.0297,165.26,165.21,11.5222]
[1729903856509,3.029,165.3,165.21,8.4917]
[1729903856713,20.91315729,165.3,165.21,1.2917]
[1729903857406,20.91315729,165.3,165.2,5.5649]
[1729903858714,3.0298,165.26,165.2,5.5649]